fUSD/lending_fUSD_20241119
["ID","MTS","AMOUNT","RATE_DAILY","PERIOD"]
[342692653,1732050652628,-185.69314432,0.0005589,120]
[342692654,1732050652638,-500.0,0.0005589,120]
[342692655,1732050652647,-500.0,0.0005589,120]
[342692656,1732050652657,-1261.02,0.0005589,3]
[342692657,1732050652666,-500.0,0.0005589,7]
[342692658,1732050652675,-500.0,0.0005589,120]
[342692659,1732050652684,-500.0,0.0005589,120]
[342692660,1732050652694,-500.0,0.0005589,120]
[342692661,1732050652703,-500.0,0.0005589,120]
[342692662,1732050652712,-500.0,0.0005589,120]
[342692663,1732050652722,-500.0,0.0005589,30]
[342692664,1732050652734,-952.42,0.0005589,120]
[342692665,1732050652744,-500.0,0.0005589,120]
[342692666,1732050652753,-500.0,0.0005589,120]
[342692667,1732050652762,-500.0,0.0005589,120]
[342692668,1732050652771,-500.0,0.0005589,120]
[342692669,1732050652780,-500.0,0.0005589,120]
[342692670,1732050652789,-500.0,0.0005589,120]
[342692671,1732050652799,-500.0,0.0005589,120]
[342692672,1732050652808,-500.0,0.0005589,120]
[342692673,1732050652817,-374.21,0.0005589,120]
[342692674,1732050652827,-504.49624717,0.0005589,120]
[342692675,1732050652835,-500.0,0.0005589,120]
[342692676,1732050652846,-500.0,0.0005589,120]
[342692677,1732050652856,-500.0,0.0005589,120]
[342692678,1732050652864,-1675.25,0.0005589,120]
[342692679,1732050652877,-7124.47,0.0005589,120]
[342692680,1732050652886,-500.0,0.0005589,120]
[342692681,1732050652895,-500.0,0.0005589,120]
[342692682,1732050652905,-500.0,0.0005589,120]
[342692683,1732050652914,-360.77457337,0.0005589,120]
[342692684,1732050652924,-500.0,0.0005589,120]
[342692685,1732050652933,-805.1,0.0005589,120]
[342692686,1732050652942,-500.0,0.0005589,120]
[342692687,1732050652951,-941.71,0.0005589,120]
[342692688,1732050652961,-500.0,0.0005589,120]
[342692689,1732050652971,-500.0,0.0005589,120]
[342692690,1732050652980,-610.06,0.0005589,120]
[342692691,1732050652989,-500.0,0.0005589,120]
[342692692,1732050652999,-500.0,0.0005589,120]
[342692693,1732050653009,-500.0,0.0005589,120]
[342692694,1732050653018,-500.0,0.0005589,120]
[342692695,1732050653031,-568.78,0.0005589,120]
[342692696,1732050653040,-613.98867682,0.0005589,120]
[342692697,1732050653049,-500.0,0.0005589,120]
[342692698,1732050653058,-500.0,0.0005589,120]
[342692699,1732050653068,-500.0,0.0005589,120]
[342692700,1732050653080,-2000.0,0.0005589,120]
[342692701,1732050653093,-500.0,0.0005589,120]
[342692702,1732050653104,-2569.74229022,0.000559,120]
[342692703,1732050653114,-1848.33267692,0.000559,28]
[342692704,1732050653123,-2900.0,0.000559,20]
[342692705,1732050653134,-2569.74229022,0.0005591,120]
[342692706,1732050653143,-2569.74229022,0.0005592,120]
[342692707,1732050653152,-150.0,0.00055926,14]
[342692708,1732050653162,-2569.74229022,0.0005593,120]
[342692709,1732050653171,-500.0,0.00055999,120]
[342692710,1732050653180,-50000.0,0.00056,46]
[342692711,1732050653190,-50000.0,0.00056,56]
[342692712,1732050653199,-15000.0,0.00056,120]
[342692713,1732050653208,-250.0,0.00056,30]
[342692714,1732050653217,-250.0,0.00056,56]
[342692715,1732050653226,-250.0,0.00056,56]
[342692716,1732050653237,-250.0,0.00056,56]
[342692717,1732050653246,-250.0,0.00056,56]
[342692718,1732050653258,-250.0,0.00056,56]
[342692719,1732050653277,-250.0,0.00056,56]
[342692720,1732050653291,-250.0,0.00056,56]
[342692721,1732050653308,-250.0,0.00056,56]
[342692722,1732050653324,-250.0,0.00056,56]
[342692723,1732050653341,-250.0,0.00056,56]
[342692724,1732050653356,-250.0,0.00056,56]
[342692725,1732050653369,-250.0,0.00056,56]
[342692726,1732050653384,-158.1305081,0.00056014,15]
[342692727,1732050653398,-150.0,0.00056026,14]
[342692728,1732050653415,-3886.2229611,0.00056028,34]
[342692729,1732050653431,-299.5,0.00056035,2]
[342692730,1732050653448,-150.0,0.00056063,14]
[342692731,1732050653463,-150.0,0.00056097,14]
[342692732,1732050653478,-1779.0,0.00056098,25]
[342692733,1732050653494,-6433.0,0.000561,120]
[342692734,1732050653510,-500.0,0.00056164,120]
[342692735,1732050653525,-500.0,0.00056164,120]
[342692736,1732050653538,-500.0,0.00056164,120]
[342692737,1732050653556,-500.0,0.00056164,120]
[342692738,1732050653569,-500.0,0.00056164,120]
[342692739,1732050653581,-500.0,0.00056164,120]
[342692740,1732050653596,-500.0,0.00056164,120]
[342692741,1732050653610,-500.0,0.00056164,120]
[342692742,1732050653621,-500.0,0.00056164,120]
[342692743,1732050653635,-500.0,0.00056164,60]
[342692744,1732050653648,-500.0,0.00056164,120]
[342692745,1732050653661,-500.0,0.00056164,120]
[342692746,1732050653674,-500.0,0.00056164,120]
[342692747,1732050653686,-500.0,0.00056164,120]
[342692748,1732050653700,-500.0,0.00056164,120]
[342692749,1732050653714,-598.73,0.00056164,120]
[342692750,1732050653726,-500.0,0.00056164,120]
[342692751,1732050653742,-556.36,0.00056164,120]
[342692752,1732050653755,-500.0,0.00056164,120]
[342692753,1732050653768,-603.68,0.00056164,120]
[342692754,1732050653780,-500.0,0.00056164,120]
[342692755,1732050653793,-500.0,0.00056164,120]
[342692756,1732050653806,-531.24497527,0.00056164,120]
[342692757,1732050653819,-500.0,0.00056164,120]
[342692758,1732050653831,-307.18,0.00056164,120]
[342692759,1732050653845,-500.0,0.00056164,120]
[342692760,1732050653857,-500.0,0.00056164,120]
[342692761,1732050653870,-500.0,0.00056164,120]
[342692762,1732050653884,-500.0,0.00056164,120]
[342692763,1732050653897,-659.45,0.00056164,120]
[342692764,1732050653909,-500.0,0.00056164,120]
[342692765,1732050653922,-500.0,0.00056164,120]
[342692766,1732050653936,-500.0,0.00056164,120]
[342692767,1732050653948,-500.0,0.00056164,120]
[342692768,1732050653962,-563.9,0.00056164,120]
[342692769,1732050653974,-884.09,0.00056164,120]
[342692770,1732050653987,-500.0,0.00056164,120]
[342692771,1732050654001,-500.0,0.00056164,120]
[342692772,1732050654014,-500.0,0.00056164,120]
[342692773,1732050654027,-500.0,0.00056164,120]
[342692774,1732050654041,-433.85196297,0.00056164,120]
[342692775,1732050654056,-500.0,0.00056164,120]
[342692776,1732050654070,-500.0,0.00056164,120]
[342692777,1732050654083,-1060.45,0.00056164,120]
[342692778,1732050654095,-714.63,0.00056164,120]
[342692779,1732050654108,-500.0,0.00056164,120]
[342692780,1732050654120,-500.0,0.00056164,120]
[342692781,1732050654133,-500.0,0.00056164,120]
[342692782,1732050654146,-626.2,0.00056164,120]
[342692783,1732050654158,-500.0,0.00056164,120]
[342692784,1732050654171,-500.0,0.00056164,120]
[342692785,1732050654184,-500.0,0.00056164,120]
[342692786,1732050654198,-500.0,0.00056164,120]
[342692787,1732050654214,-150.0,0.00056164,120]
[342692788,1732050654229,-841.66,0.00056164,120]
[342692789,1732050654240,-500.0,0.00056164,120]
[342692790,1732050654251,-495.0147757,0.00056164,120]
[342692791,1732050654262,-500.0,0.00056164,120]
[342692792,1732050654412,-1645.36,0.00056164,120]
[342692793,1732050654427,-597.45,0.00056164,120]
[342692794,1732050654436,-868.18,0.00056164,120]
[342692795,1732050654446,-992.87,0.00056164,120]
[342692796,1732050654455,-500.0,0.00056164,120]
[342692797,1732050654464,-500.0,0.00056164,120]
[342692798,1732050654473,-500.0,0.00056164,120]
[342692799,1732050654484,-639.36,0.00056164,120]
[342692800,1732050654494,-500.0,0.00056164,120]
[342692801,1732050654503,-500.0,0.00056164,120]
[342692802,1732050654514,-500.0,0.00056164,120]
[342692803,1732050654525,-500.0,0.00056164,120]
[342692804,1732050654535,-500.0,0.00056164,120]
[342692805,1732050654545,-799.42,0.00056164,120]
[342692806,1732050654554,-481.75,0.00056164,120]
[342692807,1732050654564,-500.0,0.00056164,120]
[342692808,1732050654573,-500.0,0.00056164,120]
[342692809,1732050654582,-941.29,0.00056164,120]
[342692810,1732050654594,-500.0,0.00056164,120]
[342692811,1732050654604,-500.0,0.00056164,120]
[342692812,1732050654614,-500.0,0.00056164,120]
[342692813,1732050654625,-1334.27,0.00056164,60]
[342692814,1732050654637,-470.92585948,0.00056164,120]
[342692815,1732050654647,-500.0,0.00056164,120]
[342692816,1732050654657,-500.0,0.00056164,120]
[342692817,1732050654666,-1261.02,0.00056164,3]
[342692818,1732050654676,-500.0,0.00056164,7]
[342692819,1732050654685,-500.0,0.00056164,120]
[342692820,1732050654694,-500.0,0.00056164,120]
[342692821,1732050654703,-500.0,0.00056164,120]
[342692822,1732050654713,-500.0,0.00056164,30]
[342692823,1732050654722,-952.42,0.00056164,120]
[342692824,1732050654734,-500.0,0.00056164,120]
[342692825,1732050654746,-500.0,0.00056164,120]
[342692826,1732050654755,-500.0,0.00056164,120]
[342692827,1732050654764,-500.0,0.00056164,120]
[342692828,1732050654774,-500.0,0.00056164,120]
[342692829,1732050654783,-151.0,0.00056164,120]
[342692830,1732050654792,-500.0,0.00056164,120]
[342692831,1732050654801,-500.0,0.00056164,120]
[342692832,1732050654810,-1675.25,0.00056164,120]
[342692833,1732050654819,-7124.47,0.00056164,120]
[342692834,1732050654828,-500.0,0.00056164,120]
[342692835,1732050654837,-151.0,0.00056164,120]
[342692836,1732050654846,-151.0,0.00056164,120]
[342692837,1732050654856,-500.0,0.00056164,120]
[342692838,1732050654865,-500.0,0.00056164,120]
[342692839,1732050654874,-805.1,0.00056164,120]
[342692840,1732050654883,-500.0,0.00056164,120]
[342692841,1732050654892,-941.71,0.00056164,120]
[342692842,1732050654902,-500.0,0.00056164,120]
[342692843,1732050654911,-500.0,0.00056164,120]
[342692844,1732050654920,-273.491654,0.00056164,120]
[342692845,1732050654929,-610.06,0.00056164,120]
[342692846,1732050654938,-500.0,0.00056164,120]
[342692847,1732050654947,-273.491654,0.00056164,120]
[342692848,1732050654957,-500.0,0.00056164,120]
[342692849,1732050654966,-500.0,0.00056164,120]
[342692850,1732050654976,-500.0,0.00056164,120]
[342692851,1732050654990,-500.0,0.00056164,120]
[342692852,1732050655004,-500.0,0.00056164,120]
[342692853,1732050655013,-500.0,0.00056164,120]
[342692854,1732050655022,-2000.0,0.00056164,120]
[342692855,1732050655031,-500.0,0.00056164,120]
[342692856,1732050655041,-334.0,0.000563,30]
[342692857,1732050655050,-1000.0,0.00056369,120]
[342692858,1732050655059,-150.0,0.00056381,14]
[342692859,1732050655068,-155.85415895,0.00056438,120]
[342692860,1732050655077,-500.0,0.00056438,120]
[342692861,1732050655086,-500.0,0.00056438,120]
[342692862,1732050655095,-500.0,0.00056438,120]
[342692863,1732050655105,-500.0,0.00056438,120]
[342692864,1732050655115,-549.13,0.00056438,120]
[342692865,1732050655124,-500.0,0.00056438,120]
[342692866,1732050655133,-500.0,0.00056438,120]
[342692867,1732050655143,-647.98949691,0.00056438,120]
[342692868,1732050655153,-500.0,0.00056438,60]
[342692869,1732050655162,-500.0,0.00056438,120]
[342692870,1732050655171,-500.0,0.00056438,120]
[342692871,1732050655180,-500.0,0.00056438,120]
[342692872,1732050655191,-500.0,0.00056438,120]
[342692873,1732050655200,-500.0,0.00056438,120]
[342692874,1732050655210,-598.73,0.00056438,120]
[342692875,1732050655220,-500.0,0.00056438,120]
[342692876,1732050655229,-2000.0,0.00056438,15]
[342692877,1732050655241,-200.0,0.00056438,15]
[342692878,1732050655250,-556.36,0.00056438,120]
[342692879,1732050655260,-500.0,0.00056438,120]
[342692880,1732050655269,-603.68,0.00056438,120]
[342692881,1732050655279,-500.0,0.00056438,120]
[342692882,1732050655288,-500.0,0.00056438,120]
[342692883,1732050655297,-500.0,0.00056438,120]
[342692884,1732050655307,-500.0,0.00056438,120]
[342692885,1732050655316,-500.0,0.00056438,120]
[342692886,1732050655325,-500.0,0.00056438,120]
[342692887,1732050655334,-500.0,0.00056438,120]
[342692888,1732050655344,-659.45,0.00056438,120]
[342692889,1732050655354,-500.0,0.00056438,120]
[342692890,1732050655363,-500.0,0.00056438,120]
[342692891,1732050655373,-500.0,0.00056438,120]
[342692892,1732050655383,-500.0,0.00056438,120]
[342692893,1732050655392,-563.9,0.00056438,120]
[342692894,1732050655401,-884.09,0.00056438,120]
[342692895,1732050655411,-500.0,0.00056438,120]
[342692896,1732050655419,-500.0,0.00056438,120]
[342692897,1732050655429,-500.0,0.00056438,120]
[342692898,1732050655438,-500.0,0.00056438,120]
[342692899,1732050655448,-500.0,0.00056438,120]
[342692900,1732050655457,-500.0,0.00056438,120]
[342692901,1732050655466,-1060.45,0.00056438,120]
[342692902,1732050655475,-714.63,0.00056438,120]
[342692903,1732050655487,-500.0,0.00056438,120]
[342692904,1732050655495,-500.0,0.00056438,120]
[342692905,1732050655505,-500.0,0.00056438,120]
[342692906,1732050655515,-626.2,0.00056438,120]
[342692907,1732050655526,-500.0,0.00056438,120]
[342692908,1732050655535,-500.0,0.00056438,120]
[342692909,1732050655544,-439.50958095,0.00056438,120]
[342692910,1732050655553,-500.0,0.00056438,120]
[342692911,1732050655565,-150.0,0.00056438,120]
[342692912,1732050655575,-841.66,0.00056438,120]
[342692913,1732050655584,-500.0,0.00056438,120]
[342692914,1732050655594,-500.0,0.00056438,120]
[342692915,1732050655604,-1645.36,0.00056438,120]
[342692916,1732050655613,-597.45,0.00056438,120]
[342692917,1732050655622,-868.18,0.00056438,120]
[342692918,1732050655632,-992.87,0.00056438,120]
[342692919,1732050655642,-500.0,0.00056438,120]
[342692920,1732050655653,-500.0,0.00056438,120]
[342692921,1732050655662,-500.0,0.00056438,120]
[342692922,1732050655672,-639.36,0.00056438,120]
[342692923,1732050655681,-500.0,0.00056438,120]
[342692924,1732050655691,-500.0,0.00056438,120]
[342692925,1732050655701,-500.0,0.00056438,120]
[342692926,1732050655711,-500.0,0.00056438,120]
[342692927,1732050655720,-500.0,0.00056438,120]
[342692928,1732050655730,-799.42,0.00056438,120]
[342692929,1732050655741,-500.0,0.00056438,120]
[342692930,1732050655750,-500.0,0.00056438,120]
[342692931,1732050655759,-941.29,0.00056438,120]
[342692932,1732050655769,-500.0,0.00056438,120]
[342692933,1732050655778,-500.0,0.00056438,120]
[342692934,1732050655788,-500.0,0.00056438,120]
[342692935,1732050655800,-1334.27,0.00056438,60]
[342692936,1732050655810,-500.0,0.00056438,120]
[342692937,1732050655820,-500.0,0.00056438,120]
[342692938,1732050655831,-1261.02,0.00056438,3]
[342692939,1732050655840,-500.0,0.00056438,7]
[342692940,1732050655850,-500.0,0.00056438,120]
[342692941,1732050655859,-500.0,0.00056438,120]
[342692942,1732050655868,-500.0,0.00056438,120]
[342692943,1732050655877,-500.0,0.00056438,30]
[342692944,1732050655886,-952.42,0.00056438,120]
[342692945,1732050655897,-500.0,0.00056438,120]
[342692946,1732050655910,-500.0,0.00056438,120]
[342692947,1732050655919,-500.0,0.00056438,120]
[342692948,1732050655929,-500.0,0.00056438,120]
[342692949,1732050655938,-500.0,0.00056438,120]
[342692950,1732050655949,-500.0,0.00056438,120]
[342692951,1732050655958,-500.0,0.00056438,120]
[342692952,1732050655968,-1675.25,0.00056438,120]
[342692953,1732050655977,-7124.47,0.00056438,120]
[342692954,1732050655988,-498.06988614,0.00056438,120]
[342692955,1732050655997,-500.0,0.00056438,120]
[342692956,1732050656006,-500.0,0.00056438,120]
[342692957,1732050656016,-805.1,0.00056438,120]
[342692958,1732050656025,-500.0,0.00056438,120]
[342692959,1732050656034,-941.71,0.00056438,120]
[342692960,1732050656044,-500.0,0.00056438,120]
[342692961,1732050656053,-610.06,0.00056438,120]
[342692962,1732050656063,-500.0,0.00056438,120]
[342692963,1732050656072,-500.0,0.00056438,120]
[342692964,1732050656082,-399.87,0.00056438,120]
[342692965,1732050656091,-268.7,0.00056438,120]
[342692966,1732050656101,-500.0,0.00056438,120]
[342692967,1732050656110,-2000.0,0.00056438,120]
[342692968,1732050656120,-500.0,0.00056438,120]
[342692969,1732050656129,-500.0,0.00056459,120]
[342692970,1732050656139,-150.0,0.00056533,14]
[342692971,1732050656148,-262.77,0.00056534,120]
[342692972,1732050656158,-150.0,0.0005654,14]
[342692973,1732050656167,-150.0,0.00056552,14]
[342692974,1732050656177,-11041.13198496,0.0005656,120]
[342692975,1732050656186,-176697.86182345,0.0005656,120]
[342692976,1732050656352,-57733.947134,0.0005656,120]
[342692977,1732050656365,-2262.15,0.0005656,120]
[342692978,1732050656377,-462.695,0.0005656,120]
[342692979,1732050656469,-9817.26031709,0.0005656,120]
[342692980,1732050656484,-181.7,0.0005439,10]
[342692981,1732050656494,-26893.02197362,0.0005656,120]
[342692982,1732050656505,-88798.84386442,0.0005656,120]
[342692983,1732050656621,-885.19,0.0005656,120]
[342692984,1732050656640,-527.41805735,0.0005656,120]
[342692985,1732050656690,-3.41185542,0.0005656,120]
[342692986,1732050656820,-342.108,0.00053,2]
[342692987,1732050656836,-61936.34823816,0.0005656,120]
[342692988,1732050656847,-253.78006059,0.0005656,120]
[342692989,1732050656858,-445.43909303,0.0005656,120]
[342692990,1732050656876,-304.97117413,0.00055256,2]
[342692991,1732050656886,-7718.50063905,0.0005656,120]
[342692992,1732050656897,-655.07258333,0.0005656,120]
[342692993,1732050656908,-7245.6652312,0.0005656,120]
[342692994,1732050656920,-45520.62482906,0.0005656,120]
[342692995,1732050656931,-426.10988307,0.0005656,120]
[342692996,1732050656942,-4625.65,0.0005656,120]
[342692997,1732050656953,-14985.37744584,0.0005656,120]
[342692998,1732050657165,-500.0,0.0005399,30]
[342692999,1732050657175,-500.0,0.00054794,120]
[342693000,1732050657185,-619.01193549,0.00055242,2]
[342693001,1732050657194,-16888.58806451,0.0005656,120]
[342693002,1732050657207,-11982.1850005,0.0005656,120]
[342693003,1732050657222,-341.04,0.0005656,120]
[342693004,1732050657235,-18019.36711114,0.0005656,120]
[342693005,1732050657246,-2984.38971052,0.0005656,120]
[342693006,1732050657258,-5122.20944963,0.0005656,120]
[342693007,1732050657270,-703.22209918,0.0005656,120]
[342693008,1732050657281,-311.42,0.0005656,120]
[342693009,1732050657293,-11772.093878,0.0005656,120]
[342693010,1732050657304,-2504.70570255,0.0005656,120]
[342693011,1732050657315,-4382.3775448,0.0005656,120]
[342693012,1732050657331,-500.0,0.00054,34]
[342693013,1732050657340,-5508.64640002,0.0005656,120]
[342693014,1732050657352,-10385.09365007,0.0005656,120]
[342693015,1732050657412,-500.0,0.00054794,120]
[342693016,1732050657422,-224636.67148818,0.0005656,120]
[342693017,1732050657433,-1674.94581187,0.0005656,120]
[342693018,1732050657445,-11444.947811,0.0005656,120]
[342693019,1732050657457,-2776.799664,0.0005656,120]
[342693020,1732050657468,-22613.70253888,0.0005656,120]
[342693021,1732050657479,-2541.3138532,0.0005656,120]
[342693022,1732050657903,-3621.23493034,0.0005656,120]
[342693023,1732050657915,-10873.83641748,0.0005656,120]
[342693024,1732050657926,-397.66172814,0.0005656,120]
[342693025,1732050657946,-46312.70939392,0.0005656,120]
[342693026,1732050657957,-13899.19999999,0.0005656,120]
[342693027,1732050657968,-11459.32520293,0.0005656,120]
[342693028,1732050657979,-7635.08283649,0.0005656,120]
[342693029,1732050657994,-2020.12,0.0005656,120]
[342693030,1732050658177,-166.48317678,0.000543,15]
[342693031,1732050658186,-275.62852322,0.00054794,120]
[342693032,1732050658197,-224.37147678,0.00054794,120]
[342693033,1732050658207,-500.0,0.00054794,120]
[342693034,1732050658216,-500.0,0.00054794,120]
[342693035,1732050658225,-418.02851222,0.00054794,120]
[342693036,1732050658238,-81.97148778,0.00054794,120]
[342693037,1732050658248,-500.0,0.00055068,120]
[342693038,1732050658257,-500.0,0.00055068,120]
[342693039,1732050658267,-288.95990222,0.00056211,2]
[342693040,1732050658279,-16.01127191,0.00056211,2]
[342693041,1732050658289,-39292.74168398,0.0005656,120]
[342693042,1732050658300,-267.958263,0.0005656,120]
[342693043,1732050658310,-151.0,0.0005656,120]
[342693044,1732050658319,-151.0,0.0005656,120]
[342693045,1732050658330,-151.0,0.0005656,120]
[342693046,1732050658340,-159.31156,0.0005656,120]
[342693047,1732050658350,-151.0,0.0005656,120]
[342693048,1732050658359,-151.0,0.0005656,120]
[342693049,1732050658369,-151.0,0.0005656,120]
[342693050,1732050658379,-3126.965784,0.0005656,120]
[342693051,1732050658389,-3126.965784,0.0005656,120]
[342693052,1732050658398,-151.0,0.0005656,120]
[342693053,1732050658408,-164.52178,0.0005656,120]
[342693054,1732050658417,-151.0,0.0005656,120]
[342693055,1732050658426,-151.0,0.0005656,120]
[342693056,1732050658435,-151.0,0.0005656,120]
[342693057,1732050658445,-193.140279,0.0005656,120]
[342693058,1732050658456,-193.140279,0.0005656,120]
[342693059,1732050658465,-273.491654,0.0005656,120]
[342693060,1732050658475,-273.491654,0.0005656,120]
[342693061,1732050658486,-151.0,0.0005656,120]
[342693062,1732050658496,-150.0,0.00056636,14]
[342693063,1732050658505,-150.0,0.00056654,14]
[342693064,1732050658519,-1133.0,0.000567,7]
[342693065,1732050658529,-1848.33267692,0.000567,28]
[342693066,1732050658538,-150.0,0.00056706,30]
[342693067,1732050658548,-500.0,0.00056711,120]
[342693068,1732050658559,-500.0,0.00056712,120]
[342693069,1732050658568,-631.32608019,0.00056712,120]
[342693070,1732050658577,-164.28548368,0.00056712,120]
[342693071,1732050658589,-500.0,0.00056712,120]
[342693072,1732050658598,-500.0,0.00056712,120]
[342693073,1732050658607,-500.0,0.00056712,120]
[342693074,1732050658617,-500.0,0.00056712,60]
[342693075,1732050658626,-500.0,0.00056712,120]
[342693076,1732050658635,-256.84466157,0.00056712,120]
[342693077,1732050658645,-500.0,0.00056712,120]
[342693078,1732050658654,-500.0,0.00056712,120]
[342693079,1732050658663,-500.0,0.00056712,120]
[342693080,1732050658673,-598.73,0.00056712,120]
[342693081,1732050658682,-500.0,0.00056712,120]
[342693082,1732050658695,-556.36,0.00056712,120]
[342693083,1732050658705,-500.0,0.00056712,120]
[342693084,1732050658715,-500.0,0.00056712,120]
[342693085,1732050658724,-500.0,0.00056712,120]
[342693086,1732050658820,-500.0,0.00056712,120]
[342693087,1732050658853,-629.65,0.00056712,120]
[342693088,1732050658864,-500.0,0.00056712,120]
[342693089,1732050658873,-500.0,0.00056712,120]
[342693090,1732050658883,-500.0,0.00056712,120]
[342693091,1732050658894,-659.45,0.00056712,120]
[342693092,1732050658904,-515.06,0.00056712,120]
[342693093,1732050658913,-500.0,0.00056712,120]
[342693094,1732050658924,-500.0,0.00056712,120]
[342693095,1732050658933,-500.0,0.00056712,120]
[342693096,1732050658943,-563.9,0.00056712,120]
[342693097,1732050658952,-884.09,0.00056712,120]
[342693098,1732050658963,-500.0,0.00056712,120]
[342693099,1732050658973,-500.0,0.00056712,120]
[342693100,1732050658982,-500.0,0.00056712,120]
[342693101,1732050658993,-500.0,0.00056712,120]
[342693102,1732050659002,-500.0,0.00056712,120]
[342693103,1732050659011,-500.0,0.00056712,120]
[342693104,1732050659021,-1060.45,0.00056712,120]
[342693105,1732050659031,-714.63,0.00056712,120]
[342693106,1732050659041,-500.0,0.00056712,120]
[342693107,1732050659052,-500.0,0.00056712,120]
[342693108,1732050659061,-500.0,0.00056712,120]
[342693109,1732050659071,-626.2,0.00056712,120]
[342693110,1732050659081,-462.2491255,0.00056712,120]
[342693111,1732050659091,-390.45320463,0.00056712,120]
[342693112,1732050659101,-282.45134813,0.00056712,120]
[342693113,1732050659111,-150.0,0.00056712,120]
[342693114,1732050659120,-841.66,0.00056712,120]
[342693115,1732050659130,-316.99836621,0.00056712,120]
[342693116,1732050659140,-500.0,0.00056712,120]
[342693117,1732050659149,-1645.36,0.00056712,120]
[342693118,1732050659159,-597.45,0.00056712,120]
[342693119,1732050659168,-868.18,0.00056712,120]
[342693120,1732050659178,-992.87,0.00056712,120]
[342693121,1732050659187,-500.0,0.00056712,120]
[342693122,1732050659197,-536.65004982,0.00056712,120]
[342693123,1732050659207,-500.0,0.00056712,120]
[342693124,1732050659216,-639.36,0.00056712,120]
[342693125,1732050659226,-500.0,0.00056712,120]
[342693126,1732050659237,-500.0,0.00056712,120]
[342693127,1732050659247,-500.0,0.00056712,120]
[342693128,1732050659257,-500.0,0.00056712,120]
[342693129,1732050659267,-799.42,0.00056712,120]
[342693130,1732050659279,-500.0,0.00056712,120]
[342693131,1732050659291,-500.0,0.00056712,120]
[342693132,1732050659302,-500.0,0.00056712,120]
[342693133,1732050659313,-500.0,0.00056712,120]
[342693134,1732050659325,-500.0,0.00056712,120]
[342693135,1732050659337,-1334.27,0.00056712,60]
[342693136,1732050659348,-500.0,0.00056712,120]
[342693137,1732050659360,-500.0,0.00056712,7]
[342693138,1732050659370,-500.0,0.00056712,120]
[342693139,1732050659380,-500.0,0.00056712,120]
[342693140,1732050659390,-500.0,0.00056712,120]
[342693141,1732050659401,-500.0,0.00056712,30]
[342693142,1732050659411,-952.42,0.00056712,120]
[342693143,1732050659421,-500.0,0.00056712,120]
[342693144,1732050659432,-500.0,0.00056712,120]
[342693145,1732050659442,-500.0,0.00056712,120]
[342693146,1732050659451,-500.0,0.00056712,120]
[342693147,1732050659461,-500.0,0.00056712,120]
[342693148,1732050659471,-500.0,0.00056712,120]
[342693149,1732050659480,-500.0,0.00056712,120]
[342693150,1732050659491,-1675.25,0.00056712,120]
[342693151,1732050659500,-7124.47,0.00056712,120]
[342693152,1732050659510,-500.0,0.00056712,120]